bitfinex-derivatives/quotes_ETHF0:USTF0_20250430
["timestamp","ask_amount","ask_price","bid_price","bid_amount"]
[1745982321426,13.06093516,1802.2,1802.1,1.615]
[1745982322623,11.36743516,1802.2,1802.1,1.615]
[1745982325330,10.49563516,1802.2,1802.1,1.615]
[1745982325829,10.49563516,1802.2,1802.1,2.4768]
[1745982326025,10.49563516,1802.2,1802.1,4.38913]
[1745982326331,10.49563516,1802.2,1802.1,3.2796]
[1745982327331,10.49563516,1802.2,1802.1,2.4768]
[1745982327534,11.33143516,1802.2,1802.1,0.8618]
[1745982327723,13.00903516,1802.2,1802.1,0.8618]
[1745982328231,1.10953,1802.1,1802.0,1.6702]
[1745982328423,4.31733,1802.1,1802.0,1.6702]
[1745982328623,4.31733,1802.1,1802.0,2.532]
[1745982329129,8.14533,1802.1,1802.0,2.532]
[1745982330233,4.93753,1802.1,1802.0,2.532]
[1745982330531,1.10967,1801.9,1801.8,1.10967]
[1745982330719,1.10967,1801.9,1801.8,3.66787]
[1745982330921,1.97223,1802.0,1801.9,1.10966]
[1745982331122,5.80023,1802.0,1801.9,2.82026]
[1745982331729,5.80023,1802.0,1801.9,1.7106]
[1745982332330,4.93763,1802.0,1801.9,1.7106]
[1745982332536,4.93763,1802.0,1801.9,2.82026]
[1745982334032,4.93763,1802.0,1801.9,1.7106]
[1745982335933,6.65503,1802.0,1801.9,1.7106]
[1745982336227,6.65503,1802.0,1801.9,2.82026]
[1745982339532,4.93763,1802.0,1801.9,2.82026]
[1745982339936,3.828,1802.0,1801.9,7.82026]
[1745982340145,6.66766516,1802.2,1802.1,1.10953]
[1745982340328,1.10953,1802.1,1802.0,2.79093]
[1745982340529,1.10953,1802.1,1802.0,1.98073]
[1745982341235,6.55243,1802.1,1802.0,0.8712]
[1745982341435,1.10966,1801.9,1801.8,1.10969]
[1745982341627,1.10966,1801.9,1801.8,1.94429]
[1745982342335,4.93766,1801.9,1801.8,1.94429]
[1745982342737,4.93766,1801.9,1801.8,0.8346]
[1745982342930,8.14546,1801.9,1801.8,1.94432]
[1745982344637,9.00786,1801.9,1801.8,0.8346]
[1745982348839,1.10972,1801.8,1801.7,3.515]
[1745982349235,7.45232,1801.8,1801.7,3.515]
[1745982349627,1.11003,1801.3,1801.2,7.40104853]
[1745982349836,1.11003,1801.3,1801.2,8.24114853]
[1745982350237,4.93803,1801.3,1801.2,0.8401]
[1745982350734,4.93803,1801.3,1801.2,1.95019]
[1745982350932,3.828,1801.3,1801.2,1.95019]
[1745982351127,1.11003,1801.3,1801.2,1.95019]
[1745982352740,4.31781,1801.4,1801.3,1.11003]
[1745982354140,1.11003,1801.3,1801.2,1.95014]
[1745982359344,1.11003,1801.3,1801.2,3.58854]
[1745982359843,1.11003,1801.3,1801.2,2.4785]
[1745982360046,1.89913,1801.3,1801.2,2.4785]
[1745982360242,3.47953,1801.3,1801.2,2.4785]
[1745982360844,2.77523,1801.2,1800.8,3.2078]
[1745982361044,1.11027,1800.9,1800.8,1.6384]
[1745982361840,4.31807,1800.9,1800.8,1.6384]
[1745982362040,1.11033,1800.8,1800.7,0.8136]
[1745982362245,1.11033,1800.8,1800.7,2.452]
[1745982362442,1.11033,1800.8,1800.7,3.5624]
[1745982362643,4.31813,1800.9,1800.8,1.11033]
[1745982362943,4.31813,1800.9,1800.8,2.73483]
[1745982363448,4.31813,1800.9,1800.8,1.6245]
[1745982365049,1.11033,1800.8,1800.7,1.11036]
[1745982365346,1.11033,1800.8,1800.7,2.73486]
[1745982367848,3.2078,1800.9,1800.7,2.73486]
[1745982367849,4.31807,1800.9,1800.8,1.11033]
[1745982368045,4.31807,1800.9,1800.8,2.70393]
[1745982372753,3.2078,1801.0,1800.8,2.70393]
[1745982372949,4.31806,1801.0,1800.9,3.52457]
[1745982373659,3.2078,1801.0,1800.9,3.52457]
[1745982373858,3.2078,1801.0,1800.9,7.05457]
[1745982375051,1.11013,1801.2,1801.1,1.11015]
[1745982375652,1.11013,1801.2,1801.1,2.72775]
[1745982375959,1.11013,1801.2,1801.1,1.6176]
[1745982376160,1.11015,1801.1,1801.0,1.11016]
[1745982376561,2.77005,1801.1,1801.0,2.72776]
[1745982377159,1.11021,1801.0,1800.9,4.64026]
[1745982377359,2.77011,1801.0,1800.9,6.25786]
[1745982380565,2.77011,1801.0,1800.9,5.1476]
[1745982380864,2.77011,1801.0,1800.9,3.53]
[1745982381065,1.6599,1801.0,1800.7,7.5226]
[1745982381265,1.11033,1800.8,1800.7,1.6206]
[1745982381658,3.57863,1800.8,1800.7,1.6206]
[1745982382460,3.57863,1800.8,1800.7,2.731]
[1745982382656,3.57863,1800.8,1800.7,1.6206]
[1745982383761,3.57863,1800.8,1800.4,8.76066]
[1745982383762,2.776,1800.7,1800.4,3.2078]
[1745982383966,1.11058,1800.5,1800.4,1.11057]
[1745982384155,1.11058,1800.5,1800.4,2.75397]
[1745982384360,1.90218,1800.5,1800.4,2.75397]
[1745982386868,1.11058,1800.4,1800.3,3.53]
[1745982387168,1.11058,1800.4,1800.3,4.64064]
[1745982387466,2.81728,1800.4,1800.3,4.64064]
[1745982390361,2.81728,1800.4,1800.3,1.11064]
[1745982391780,1.11058,1800.4,1800.3,2.85644]
[1745982392868,2.69878,1800.4,1800.3,2.85644]
[1745982393176,2.69494427,1800.4,1800.3,2.85644]
[1745982396175,2.69494427,1800.4,1800.3,1.11064]
[1745982397277,5.10997,1800.5,1800.4,1.11058]
[1745982398074,5.10997,1800.5,1800.4,2.75328]
[1745982401376,1.90217,1800.5,1800.4,2.75328]
[1745982404178,5.14608,1800.6,1800.5,1.11052]
[1745982404366,5.14608,1800.6,1800.5,2.80442]
[1745982404570,5.14608,1800.6,1800.5,3.65682]
[1745982408179,5.14608,1800.6,1800.5,7.48482]
[1745982409380,5.14608,1800.6,1800.5,3.65682]
[1745982410387,5.14608,1800.6,1800.5,7.48482]
[1745982410681,1.93828,1800.6,1800.5,7.48482]
[1745982411186,1.93828,1800.6,1800.5,3.65682]
[1745982411689,2.78648,1800.6,1800.5,3.65682]
[1745982417286,4.31825,1800.7,1800.6,1.11046]
[1745982417490,4.31825,1800.7,1800.6,2.69956]
[1745982419186,3.2078,1800.7,1800.6,2.69956]
[1745982419387,9.87628516,1800.9,1800.8,1.11033]
[1745982420286,9.87628516,1800.9,1800.8,2.84113]
[1745982420778,11.55718516,1800.9,1800.8,2.84113]
[1745982421693,5.99902,1800.9,1800.8,2.84113]
[1745982422891,4.45964,1801.0,1800.9,1.11027]
[1745982422892,2.79436,1801.0,1800.9,1.11027]
[1745982423079,2.79436,1801.0,1800.9,3.64557]
[1745982423284,4.46816,1801.0,1800.9,3.64557]
[1745982423593,3.3579,1801.0,1800.9,3.64557]
[1745982423892,0.8478,1801.0,1800.9,3.64557]
[1745982424090,0.8478,1801.0,1800.9,7.47357]
[1745982424296,1.95801,1801.0,1800.9,5.5588]
[1745982424493,4.46071,1801.0,1800.9,6.66907]
[1745982425391,4.46071,1801.0,1800.9,2.84107]
[1745982430584,2.78691,1801.0,1800.9,2.84107]
[1745982430790,1.11021,1801.0,1800.9,3.65227]
[1745982430992,4.318,1801.1,1801.0,1.11021]
[1745982431193,5.9301,1801.1,1801.0,2.75831]
[1745982431889,5.9301,1801.1,1800.9,5.74943]
[1745982432196,1.11027,1800.9,1800.8,2.7584]
[1745982432596,3.58937,1800.9,1800.8,2.7584]
[1745982435402,3.58937,1800.9,1800.8,3.6162]
[1745982441803,1.91457,1800.9,1800.8,3.6162]
[1745982442003,5.13207,1801.0,1800.9,1.11027]
[1745982442207,5.13207,1801.0,1800.9,2.84057]
[1745982442701,4.31807,1801.0,1800.9,2.84057]
[1745982443805,4.31807,1801.0,1800.9,1.7303]
[1745982444103,4.31807,1801.0,1800.7,1.95745]
[1745982444104,1.11033,1800.8,1800.7,1.95745]
[1745982444301,1.11033,1800.8,1800.7,2.75115]
[1745982445106,1.11033,1800.8,1800.7,6.57915]
[1745982446106,1.11033,1800.8,1800.7,2.75115]
[1745982446305,1.11031,1800.9,1800.8,1.11033]
[1745982446508,1.11031,1800.9,1800.8,2.69793]
[1745982446805,3.2078,1801.0,1800.9,1.11027]
[1745982447007,8.36984516,1801.1,1801.0,1.11021]
[1745982447201,7.53114516,1801.1,1801.0,1.11021]
[1745982447401,7.53114516,1801.1,1801.0,3.56031]
[1745982449316,6.66834516,1801.1,1801.0,3.56031]
[1745982449517,5.55816516,1801.1,1801.0,3.56031]
[1745982449813,6.66831516,1801.1,1801.0,3.56031]
[1745982450309,5.55816516,1801.1,1801.0,3.56031]
[1745982450704,6.66831516,1801.1,1801.0,3.56031]
[1745982450909,5.55816516,1801.1,1801.0,3.56031]
[1745982451111,6.66831516,1801.1,1801.0,3.56031]
[1745982452317,1.11015,1801.1,1801.0,3.56031]
[1745982454114,4.31792,1801.2,1801.1,1.11015]
[1745982454317,4.31792,1801.2,1801.1,3.60355]
[1745982459419,3.2078,1801.2,1801.1,3.60355]
[1745982463125,2.72093,1801.3,1801.2,1.11009]
[1745982463322,2.72093,1801.3,1801.2,2.73679]
[1745982463524,3.2078,1801.4,1801.3,1.11003]
[1745982463716,3.2078,1801.4,1801.3,3.55943]
[1745982465021,4.31777,1801.4,1801.3,3.55943]
[1745982465330,3.2078,1801.4,1801.3,3.55943]
[1745982465529,3.2078,1801.4,1801.3,4.39953]
[1745982466132,3.2078,1801.4,1801.3,8.22753]
[1745982468332,5.55816516,1801.6,1801.5,1.1099]
[1745982469170,5.55816516,1801.6,1801.5,1.9021]
[1745982469757,5.55816516,1801.6,1801.5,5.4191]
[1745982470165,5.55816516,1801.6,1801.5,9.2471]
[1745982471243,7.38130805,1801.8,1801.7,1.10978]
[1745982471444,7.38130805,1801.8,1801.7,4.31758]
[1745982471649,0.05816289,1801.8,1801.7,9.31758]
[1745982471946,7.99077804,1801.9,1801.8,1.10972]
[1745982472141,7.99077804,1801.9,1801.8,6.27372]
[1745982472341,7.99077804,1801.9,1801.8,12.08802]
[1745982473237,7.99077804,1801.9,1801.8,15.91602]
[1745982476632,7.99077804,1801.9,1801.8,10.91602]
[1745982477335,7.99077804,1801.9,1801.8,16.81802]
[1745982480640,6.86565804,1801.9,1801.8,16.81802]
[1745982480836,5.16935804,1801.9,1801.8,16.81802]
[1745982481038,2.13562804,1801.9,1801.8,16.81802]
[1745982481339,8.04e-06,1801.9,1801.8,16.81802]
[1745982482537,10.96720706,1802.2,1802.1,1.10953]
[1745982482738,10.96720706,1802.2,1802.1,7.83233]
[1745982483244,12.63440706,1802.2,1802.1,7.83233]
[1745982483438,12.63440706,1802.2,1802.1,9.51463]
[1745982484639,13.74387706,1802.2,1802.1,7.83233]
[1745982485537,12.63440706,1802.2,1802.1,7.83233]
[1745982487139,12.63440706,1802.2,1802.1,4.62453]
[1745982489850,13.74387706,1802.2,1802.1,4.62453]
[1745982490552,10.96720706,1802.2,1802.1,4.62453]
[1745982490745,12.07667706,1802.2,1802.1,4.62453]
[1745982490950,13.80567706,1802.2,1802.1,4.62453]
[1745982495951,13.80567706,1802.2,1802.1,3.515]
[1745982496155,17.63367706,1802.2,1802.1,3.515]
[1745982496454,17.63367706,1802.2,1802.1,4.62453]
[1745982497258,13.80567706,1802.2,1802.1,4.62453]
[1745982497953,2.83847,1802.2,1802.1,4.62453]
[1745982499255,6.66647,1802.2,1802.1,4.62453]
[1745982500163,2.83847,1802.2,1802.1,4.62453]
[1745982505169,1.10966,1802.0,1801.8,3.2078]
[1745982505477,1.10972,1801.8,1801.7,5.902]
[1745982505774,1.10984,1801.7,1801.6,1.1098]
[1745982505972,2.74314,1801.7,1801.6,1.1098]
[1745982507476,2.74314,1801.7,1801.6,2.6882]
[1745982508875,2.74314,1801.7,1801.6,1.1098]
[1745982511177,2.74314,1801.7,1801.6,1.10984]
[1745982511178,6.57114,1801.7,1801.6,1.10984]
[1745982511381,6.57114,1801.7,1801.6,2.76814]
[1745982512278,2.74314,1801.7,1801.6,2.76814]
[1745982513677,1.10984,1801.6,1801.5,4.62485]
[1745982513878,3.52464,1801.6,1801.5,4.62485]
[1745982514075,1.10997,1801.4,1801.3,0.8022]
[1745982514278,1.10997,1801.4,1801.3,1.6939]
[1745982514480,1.11003,1801.3,1801.2,3.516]
[1745982514678,1.91623,1801.3,1801.2,6.31999]
[1745982516186,1.91623,1801.3,1801.2,2.80399]
[1745982516581,1.91623,1801.3,1801.2,1.6939]
[1745982517285,3.59563,1801.3,1801.2,1.6939]
[1745982520488,2.4856,1801.3,1801.0,3.516]
[1745982520683,1.11015,1801.1,1801.0,3.516]
[1745982520882,1.11027,1800.9,1800.8,3.5394]
[1745982521188,1.11027,1800.9,1800.8,7.3674]
[1745982526583,1.11027,1800.9,1800.8,3.828]
[1745982526892,3.49607,1800.9,1800.8,3.828]
[1745982527084,1.1104,1800.7,1800.6,2.5485]
[1745982527485,1.1104,1800.7,1800.6,3.65896]
[1745982527986,1.1104,1800.7,1800.6,2.5485]
[1745982528390,1.1104,1800.7,1800.6,3.65896]
[1745982528586,1.1104,1800.8,1800.7,1.11034]
[1745982528782,1.1104,1800.8,1800.7,2.84984]
[1745982529183,1.1104,1800.8,1800.7,6.67784]
[1745982531204,1.11032,1800.9,1800.8,1.11027]
[1745982531393,1.11032,1800.9,1800.8,3.55547]
[1745982531894,1.11025,1801.0,1800.9,1.11027]
[1745982532087,1.11025,1801.0,1800.9,3.56077]
[1745982532390,1.11025,1801.0,1800.9,7.38877]
[1745982532898,1.11018,1801.1,1801.0,1.11015]
[1745982533084,1.11018,1801.1,1801.0,6.65225]
[1745982537095,1.11018,1801.1,1801.0,5.5421]
[1745982537694,1.11018,1801.1,1801.0,6.65231]
[1745982537890,4.31793,1801.2,1801.1,1.11015]
[1745982538094,4.31793,1801.2,1801.1,3.62445]
[1745982538796,1.11006,1801.3,1801.2,1.11009]
[1745982539095,1.11006,1801.3,1801.2,3.58489]
[1745982539295,1.11006,1801.3,1801.2,7.41289]
[1745982545608,2.85786,1801.3,1801.2,5.4817]
[1745982546105,2.85786,1801.3,1801.2,6.59179]
[1745982546307,2.85786,1801.3,1801.2,2.76379]
[1745982546707,1.11006,1801.3,1801.2,2.76379]
[1745982547706,4.31786,1801.3,1801.2,2.76379]
[1745982548101,4.31786,1801.3,1801.2,6.59179]
[1745982548909,1.11001,1801.4,1801.3,1.11003]
[1745982549208,1.11001,1801.4,1801.3,3.56433]
[1745982550205,1.11001,1801.4,1801.3,7.39233]
[1745982552812,1.11001,1801.4,1801.3,5.4376]
[1745982553013,1.11001,1801.4,1801.3,6.54763]
[1745982553216,4.44101,1801.4,1801.3,6.54763]
[1745982558216,1.5977,1801.4,1801.3,6.54763]
[1745982558516,4.31775,1801.5,1801.4,1.10997]
[1745982558717,4.31775,1801.5,1801.4,3.57447]
[1745982559514,5.98665,1801.5,1801.4,2.71177]
[1745982559714,1.10997,1801.4,1801.3,1.10998]
[1745982559910,2.77887,1801.4,1801.3,2.71178]
[1745982560112,2.77887,1801.4,1801.3,6.53978]
[1745982562118,4.31776,1801.5,1801.4,1.10997]
[1745982562320,4.31776,1801.5,1801.4,2.69437]
[1745982565025,1.10996,1801.5,1801.4,2.69437]
[1745982565327,1.10996,1801.5,1801.4,6.52237]
[1745982565719,1.96879,1801.6,1801.5,1.1099]
[1745982565922,1.96879,1801.6,1801.5,4.4004]
[1745982566125,1.96879,1801.6,1801.5,7.4131]
[1745982566324,3.64109,1801.6,1801.5,7.4131]
[1745982569021,1.96879,1801.6,1801.5,7.4131]
[1745982579637,1.96879,1801.6,1801.5,6.3032]
[1745982579833,3.68609,1801.6,1801.5,6.5658]
[1745982581332,6.89389,1801.6,1801.5,6.5658]
[1745982582935,6.89389,1801.6,1801.5,5.4559]
[1745982584333,5.784,1801.6,1801.2,3.2078]
[1745982584527,1.11003,1801.3,1801.2,1.6531]
[1745982584836,1.11003,1801.3,1801.2,2.76319]
[1745982585036,4.37913,1801.3,1801.2,2.76319]
[1745982586834,1.96183,1801.3,1801.2,2.76319]
[1745982587034,1.11003,1801.3,1801.2,2.76319]
[1745982587237,1.11003,1801.3,1801.2,6.59119]
[1745982590039,3.9969,1801.4,1801.3,1.11003]
[1745982590040,5.10692,1801.4,1801.3,1.11003]
[1745982590334,5.10692,1801.4,1801.3,3.58053]
[1745982591240,4.31782,1801.4,1801.3,7.40853]
[1745982592540,4.31782,1801.4,1801.3,6.2985]
[1745982592835,5.93232,1801.4,1801.3,5.5011]
[1745982593135,5.93232,1801.4,1801.3,1.6731]
[1745982594137,5.93232,1801.4,1801.3,5.5011]
[1745982595341,5.93232,1801.4,1801.3,3.828]
[1745982596238,1.11003,1801.3,1801.2,1.7404]
[1745982596441,4.40613,1801.3,1801.2,1.7404]
[1745982598743,1.98273,1801.3,1801.2,2.85049]
[1745982598942,1.98273,1801.3,1801.2,1.7404]
[1745982599141,2.83373,1801.3,1801.2,2.85049]
[1745982599641,2.83373,1801.3,1801.2,1.7404]
[1745982600042,2.83373,1801.3,1801.2,2.85049]
[1745982600435,2.83373,1801.3,1801.2,1.7404]
[1745982600646,1.11015,1801.1,1801.0,3.516]
[1745982601036,1.11021,1801.0,1800.9,1.6313]
[1745982601237,1.93701,1801.0,1800.9,1.6313]
[1745982601439,3.54561,1801.0,1800.9,1.6313]
[1745982602543,6.75341,1801.0,1800.9,1.6313]
[1745982603442,5.14481,1801.0,1800.9,2.74157]
[1745982603644,5.14481,1801.0,1800.9,3.60417]
[1745982604151,5.14481,1801.0,1800.9,7.43217]
[1745982604551,4.31801,1801.0,1800.9,7.43217]
[1745982604846,3.2078,1801.0,1800.9,7.43217]
[1745982605947,1.1102,1801.1,1801.0,1.11021]
[1745982606150,1.1102,1801.1,1801.0,6.61801]
[1745982606651,4.31794,1801.2,1801.1,1.11015]
[1745982606949,4.31794,1801.2,1801.1,3.57815]
[1745982607146,4.41875,1801.3,1801.1,2.468]
[1745982607147,2.75368,1801.3,1801.1,2.468]
[1745982607451,1.11,1801.4,1801.3,1.11003]
[1745982607950,12.39099127,1801.5,1801.4,1.10997]
[1745982608153,3.2078,1801.5,1801.4,4.93797]
[1745982608644,3.2078,1801.5,1801.4,7.40597]
[1745982609152,1.10986,1801.6,1801.5,1.1099]
[1745982609354,1.10986,1801.6,1801.5,2.8022]
[1745982610355,1.10986,1801.6,1801.5,6.6302]
[1745982610951,13.57452127,1801.7,1801.6,1.10984]
[1745982611151,11.15602127,1801.7,1801.6,2.80214]
[1745982611351,10.04619127,1801.7,1801.6,2.80214]
[1745982611654,1.10978,1801.8,1801.7,1.10975]
[1745982611843,1.10978,1801.8,1801.7,3.63525]
[1745982612049,6.4546,1801.9,1801.8,1.10972]
[1745982612050,4.877,1801.9,1801.8,1.10972]
[1745982612253,4.0106,1801.9,1801.8,2.74072]
[1745982612455,4.0106,1801.9,1801.8,3.60752]
[1745982612651,2.4958,1802.1,1801.8,2.4978]
[1745982612850,14.30329127,1802.2,1802.1,1.10953]
[1745982613050,12.39099127,1802.2,1802.1,1.10953]
[1745982613553,9.18319127,1802.2,1802.1,1.10953]
[1745982613753,9.18319127,1802.2,1802.1,2.74053]
[1745982615156,2.77773,1802.5,1802.2,2.77365]
[1745982615364,2.77773,1802.5,1802.4,1.10935]
[1745982615764,2.77773,1802.5,1802.4,2.72745]
[1745982617663,1.91213,1802.5,1802.4,2.72745]
[1745982617858,0.8028,1802.5,1802.4,2.72745]
[1745982618261,10.81339127,1802.6,1802.5,1.10929]
[1745982618558,1.6302,1802.6,1802.5,2.71449]
[1745982619065,2.73943,1802.6,1802.5,1.6052]
[1745982619766,2.73943,1802.6,1802.5,2.71449]
[1745982622673,2.74387755,1802.6,1802.5,2.71449]
[1745982624164,1.11367755,1802.6,1802.5,2.71449]
[1745982625663,1.11367755,1802.6,1802.5,1.6052]
[1745982625870,1.10935,1802.4,1802.3,1.92165]
[1745982626168,1.10935,1802.4,1802.3,3.59265]
[1745982626563,5.90554,1802.5,1802.4,1.10935]
[1745982626764,5.90554,1802.5,1802.4,2.78035]
[1745982627663,5.90554,1802.5,1802.4,1.671]
[1745982627871,4.7962,1802.5,1802.2,3.515]
[1745982628068,1.10941,1802.3,1802.2,6.35007]
[1745982628571,3.71631,1802.3,1802.2,6.35007]
[1745982631071,3.71631,1802.3,1802.2,5.2406]
[1745982631468,3.71631,1802.3,1802.2,6.35007]
[1745982633174,3.71631,1802.3,1802.2,5.2406]
[1745982633968,6.92411,1802.3,1802.2,3.515]
[1745982634171,10.75211,1802.3,1802.2,3.515]
[1745982641282,1.1096,1802.0,1801.9,5.2506]
[1745982641481,1.1096,1802.0,1801.9,6.36026]
[1745982644084,5.12146,1802.1,1802.0,1.1096]
[1745982644382,5.12146,1802.1,1802.0,3.5292]
[1745982645385,4.31736,1802.1,1802.0,4.334]
[1745982647287,4.31736,1802.1,1802.0,3.2244]
[1745982647586,4.31736,1802.1,1802.0,2.4196]
[1745982648185,4.31736,1802.1,1802.0,3.5292]
[1745982648385,4.31736,1802.1,1802.0,1.6262]
[1745982648689,1.1096,1802.0,1801.9,3.514]
[1745982648885,4.4711,1802.0,1801.9,3.514]
[1745982649786,4.4711,1802.0,1801.9,4.62366]
[1745982650086,2.7255,1802.0,1801.9,6.23486]
[1745982651291,4.31738,1802.1,1802.0,1.1096]
[1745982651487,4.31738,1802.1,1802.0,3.5358]
[1745982651890,4.31738,1802.1,1802.0,4.3975]
[1745982656890,4.31738,1802.1,1802.0,3.2879]
[1745982658096,4.31738,1802.1,1802.0,4.3975]
[1745982658490,4.31738,1802.1,1802.0,3.2879]
[1745982659695,4.31738,1802.1,1802.0,2.4262]
[1745982659992,5.94868,1802.1,1802.0,2.4262]
[1745982660692,1.1096,1802.0,1801.9,3.514]
[1745982660882,2.7967,1802.0,1801.9,5.2035]
[1745982665388,2.7967,1802.0,1801.9,3.514]
[1745982666496,2.7967,1802.0,1801.9,5.2285]
[1745982667798,6.0045,1802.0,1801.9,5.2285]
[1745982668894,6.0045,1802.0,1801.9,6.33816]
[1745982669900,6.0045,1802.0,1801.9,5.2285]
[1745982674099,4.3174,1802.0,1801.9,6.33816]
[1745982674299,4.3174,1802.0,1801.9,7.18916]
[1745982674602,3.2078,1802.0,1801.9,7.18916]
[1745982675299,4.3174,1802.0,1801.9,7.18916]
[1745982676509,4.3174,1802.0,1801.9,6.0795]
[1745982676804,4.3174,1802.0,1801.9,7.18916]
[1745982678708,4.3174,1802.0,1801.9,5.2285]
[1745982680005,4.3174,1802.0,1801.9,3.514]
[1745982680206,10.98189,1802.0,1801.6,3.514]
[1745982680412,1.10978,1801.7,1801.6,5.1022]
[1745982682304,2.82988,1801.7,1801.6,5.1022]
[1745982683509,4.49464,1801.7,1801.2,7.40104853]
[1745982683812,1.11003,1801.3,1801.2,10.91504853]
[1745982684213,3.69333,1801.3,1801.2,7.40104853]
[1745982687623,8.69333,1801.3,1801.2,7.40104853]
[1745982688720,8.69333,1801.3,1801.0,1.6195]
[1745982688721,1.11015,1801.1,1801.0,1.6195]
[1745982688921,4.31795,1801.1,1801.0,1.6195]
[1745982690222,4.31795,1801.1,1801.0,5.4475]
[1745982690421,6.06035,1801.1,1801.0,5.4475]
[1745982691827,2.85255,1801.1,1801.0,5.4475]
[1745982692122,6.06035,1801.1,1801.0,1.6195]
[1745982697722,4.9502,1801.1,1800.8,0.8176]
[1745982697928,1.1104,1800.7,1800.6,3.515]
[1745982698121,1.1104,1800.7,1800.6,4.3527]
[1745982699224,1.1104,1800.7,1800.6,5.9601]
[1745982699830,4.3182,1800.7,1800.6,5.9601]
[1745982702430,1.11046,1800.6,1800.5,3.828]
[1745982702628,1.11046,1800.6,1800.5,5.5572]
[1745982702829,1.11046,1800.6,1800.5,6.66772]
[1745982704233,1.11046,1800.6,1800.5,5.5572]
[1745982705039,1.11044,1800.7,1800.6,1.11046]
[1745982705334,1.11044,1800.7,1800.6,3.3237]
[1745982705735,4.31824,1800.7,1800.6,2.5283]
[1745982707539,6.05864,1800.7,1800.6,2.5283]
[1745982708734,4.31824,1800.7,1800.6,2.5283]
[1745982710135,4.31824,1800.7,1800.6,1.702]
[1745982713739,1.11058,1800.4,1800.3,3.516]
[1745982714047,1.11077,1800.1,1800.0,3.516]
[1745982714437,1.11083,1800.0,1799.9,1.6199]
[1745982715144,1.11083,1800.0,1799.9,5.4479]
[1745982715346,1.11083,1800.0,1799.9,7.0993]
[1745982716043,1.11081,1800.1,1799.9,8.21015]
[1745982716347,1.11081,1800.1,1800.0,1.6459]
[1745982716642,1.11081,1800.1,1800.0,2.75673]
[1745982716849,1.11075,1800.2,1800.0,2.75673]
[1745982717047,1.11075,1800.2,1800.1,1.6459]
[1745982719644,1.11077,1800.1,1800.0,3.828]
[1745982719851,1.11077,1800.1,1800.0,5.4468]
[1745982721349,1.11075,1800.2,1800.0,6.5576]
[1745982721552,1.11075,1800.2,1800.1,1.6188]
[1745982722644,1.92215,1800.2,1800.1,1.6188]
[1745982722852,4.44195,1800.2,1800.1,1.6188]
[1745982726056,1.11075,1800.2,1800.1,1.6188]
[1745982726654,1.11075,1800.2,1800.1,2.72957]
[1745982726852,4.31849,1800.3,1800.2,1.1107]
[1745982727049,4.31849,1800.3,1800.2,3.229]
[1745982727555,4.31849,1800.3,1800.2,4.3397]
[1745982728154,4.31849,1800.3,1800.2,7.057]
[1745982729259,4.31849,1800.3,1800.2,6.2294]
[1745982729554,6.81829,1800.3,1800.2,3.828]
[1745982730151,1.11083,1800.0,1799.9,0.7963]
[1745982730450,1.11083,1800.0,1799.9,2.3905]
[1745982731049,1.94583,1800.0,1799.9,2.3905]
[1745982731253,3.62233,1800.0,1799.9,6.2185]
[1745982731454,4.31858,1800.1,1800.0,1.11083]
[1745982731649,4.31858,1800.1,1800.0,2.84383]
[1745982731849,3.2078,1800.1,1800.0,2.84383]
[1745982732256,3.2078,1800.1,1800.0,6.67183]
[1745982732257,4.31857,1800.1,1800.0,6.67183]
[1745982732457,1.11077,1800.1,1800.0,6.67183]
[1745982732754,1.11077,1800.1,1800.0,6.67182]
[1745982733052,1.11075,1800.2,1800.0,6.67182]
[1745982733253,1.11075,1800.2,1800.1,2.5471]
[1745982733851,1.11075,1800.2,1800.1,3.65787]
[1745982734357,1.11075,1800.2,1800.1,2.5471]
[1745982735345,4.31855,1800.2,1800.1,2.5471]
[1745982736258,4.31855,1800.2,1800.1,1.733]
[1745982736459,1.11077,1800.1,1800.0,3.828]
[1745982736660,2.79497,1800.1,1800.0,3.828]
[1745982736958,2.79497,1800.1,1800.0,5.5062]
[1745982738562,1.11077,1800.1,1800.0,6.61703]
[1745982739359,4.31854,1800.2,1800.0,5.5062]
[1745982739654,4.31854,1800.2,1800.1,2.4592]
[1745982739854,1.11077,1800.1,1800.0,3.828]
[1745982740059,4.45317,1800.1,1800.0,3.828]
[1745982740260,1.11089,1799.9,1799.8,3.52774]
[1745982740464,1.11089,1799.9,1799.8,1.93314]
[1745982740653,2.77998,1800.0,1799.8,0.8222]
[1745982740852,2.77998,1800.0,1799.9,1.11089]
[1745982741862,1.11089,1799.9,1799.8,5.7611]
[1745982743262,1.11089,1799.9,1799.8,3.828]
[1745982743761,2.85589,1799.9,1799.8,3.828]
[1745982744163,1.11108,1799.6,1799.5,6.29321]
[1745982744360,1.11108,1799.6,1799.5,5.1821]
[1745982744557,1.1112,1799.4,1799.3,3.828]
[1745982744862,1.6569,1799.5,1799.3,4.6319]
[1745982745059,1.6569,1799.5,1799.3,5.74314]
[1745982745263,1.6569,1799.5,1799.3,4.6319]
[1745982745264,1.1112,1799.4,1799.3,4.6319]
[1745982745464,1.1112,1799.4,1799.3,5.74316]
[1745982748161,1.1112,1799.4,1799.3,4.6319]
[1745982748467,1.1112,1799.4,1799.3,5.74316]
[1745982749364,1.1112,1799.4,1799.3,4.6319]
[1745982750868,1.1112,1799.4,1799.3,5.74316]
[1745982751069,4.35779,1799.5,1799.4,1.1112]